bitfinex/quotes_BTCUSD_20251226
["timestamp","ask_amount","ask_price","bid_price","bid_amount"]
[1766741591457,0.01054468,88775.0,88760.0,0.01126633]
[1766741591744,0.01128,88776.0,88760.0,0.01126633]
[1766741592079,0.01054468,88775.0,88760.0,0.01126633]
[1766741592199,0.01128,88776.0,88760.0,0.01126633]
[1766741592551,0.01054488,88775.0,88760.0,0.01126633]
[1766741592713,0.01128,88776.0,88760.0,0.01126633]
[1766741593047,0.01054563,88775.0,88758.0,0.07886574]
[1766741593199,0.01128,88776.0,88760.0,0.01126633]
[1766741593394,0.01054587,88775.0,88760.0,0.01126633]
[1766741593634,0.01054587,88774.0,88759.0,0.01126646]
[1766741593840,0.01054587,88773.0,88759.0,0.01126646]
[1766741594045,0.01128,88776.0,88759.0,0.01126646]
[1766741594248,0.01054736,88775.0,88759.0,0.01126646]
[1766741594453,0.01054736,88774.0,88759.0,0.01126646]
[1766741594668,0.01054736,88773.0,88759.0,0.01126646]
[1766741594811,0.01128,88776.0,88759.0,0.01126646]
[1766741595025,0.01054833,88775.0,88758.0,0.02253318]
[1766741595225,0.01054833,88774.0,88759.0,0.01126646]
[1766741595427,0.01054833,88773.0,88758.0,0.02253318]
[1766741595681,0.01128,88776.0,88759.0,0.01126646]
[1766741595840,0.01054986,88775.0,88759.0,0.01126646]
[1766741596035,0.01054986,88774.0,88759.0,0.01126646]
[1766741596259,0.01054986,88773.0,88759.0,0.01126646]
[1766741596427,0.01054986,88772.0,88760.0,0.01126633]
[1766741596631,0.01128,88777.0,88760.0,0.01126633]
[1766741596831,0.01055158,88776.0,88761.0,0.0112662]
[1766741597032,0.01055158,88775.0,88762.0,0.01128]
[1766741597282,0.01055158,88774.0,88762.0,0.01128]
[1766741597454,0.01055158,88773.0,88762.0,0.01128]
[1766741597661,0.01055158,88772.0,88762.0,0.01128]
[1766741597861,0.01128,88777.0,88762.0,0.01128]
[1766741598098,0.01055381,88776.0,88762.0,0.01128]
[1766741598397,0.01055381,88775.0,88762.0,0.01128]
[1766741598583,0.01055381,88774.0,88762.0,0.01128]
[1766741598790,0.01055381,88773.0,88762.0,0.01128]
[1766741599007,0.01055381,88772.0,88762.0,0.01128]
[1766741599194,0.01055381,88771.0,88762.0,0.01128]
[1766741599399,0.01056022,88770.0,88762.0,0.01128]
[1766741599572,0.01128,88777.0,88762.0,0.01128]
[1766741599782,0.01056022,88776.0,88762.0,0.01128]
[1766741599977,0.01056022,88775.0,88762.0,0.01128]
[1766741600207,0.01056022,88774.0,88762.0,0.01128]
[1766741600409,0.01056022,88773.0,88762.0,0.01128]
[1766741600568,0.01056022,88772.0,88762.0,0.01128]
[1766741600770,0.01056022,88771.0,88762.0,0.01128]
[1766741600956,0.01056022,88770.0,88762.0,0.01128]
[1766741601172,0.01056022,88769.0,88762.0,0.01128]
[1766741601374,0.01056022,88768.0,88762.0,0.01128]
[1766741601574,0.0112643,88776.0,88762.0,0.01128]
[1766741601575,0.01056679,88767.0,88762.0,0.01128]
[1766741601799,0.01126443,88775.0,88762.0,0.01128]
[1766741601997,0.01056707,88774.0,88762.0,0.01128]
[1766741602170,0.01056707,88773.0,88762.0,0.01128]
[1766741602371,0.01056707,88772.0,88762.0,0.01128]
[1766741602624,0.01056707,88771.0,88762.0,0.01128]
[1766741602830,0.01056707,88770.0,88762.0,0.01128]
[1766741603029,0.01056707,88769.0,88762.0,0.01128]
[1766741603244,0.01056707,88768.0,88762.0,0.01128]
[1766741603475,0.01056707,88767.0,88762.0,0.01128]
[1766741603699,0.0112643,88776.0,88762.0,0.01128]
[1766741603873,0.01056696,88775.0,88762.0,0.01128]
[1766741604076,0.01,88796.0,88765.0,0.0112657]
[1766741604077,0.01056696,88774.0,88765.0,0.0112657]
[1766741604216,0.01056696,88773.0,88765.0,0.0112657]
[1766741604419,0.01051096,88772.0,88765.0,0.0112657]
[1766741604699,0.01126329,88784.0,88765.0,0.0112657]
[1766741604875,0.02254291,88787.0,88767.0,0.01126544]
[1766741605053,0.01126303,88786.0,88765.0,0.0112657]
[1766741606051,0.01126303,88786.0,88766.0,0.01126557]
[1766741606052,0.01126316,88785.0,88766.0,0.01126557]
[1766741606262,0.01126316,88785.0,88765.0,0.0112657]
[1766741606674,0.01126316,88785.0,88766.0,0.01126557]
[1766741607072,0.01126303,88786.0,88767.0,0.01126544]
[1766741607443,0.01126316,88785.0,88766.0,0.02253139]
[1766741607592,0.07885785,88787.0,88766.0,0.02253139]
[1766741607796,0.01126316,88785.0,88766.0,0.02253139]
[1766741608002,0.07885785,88787.0,88767.0,0.01126544]
[1766741608182,0.02254291,88787.0,88767.0,0.01126544]
[1766741608381,0.01126316,88785.0,88766.0,0.02253139]
[1766741609493,0.01126303,88786.0,88767.0,0.01126544]
[1766741609680,0.01126303,88786.0,88766.0,0.02253139]
[1766741610296,0.01128,88789.0,88766.0,0.02253139]
[1766741610496,0.01126303,88786.0,88766.0,0.02253139]
[1766741610765,0.01126291,88787.0,88766.0,0.02253139]
[1766741610941,0.01126303,88786.0,88766.0,0.02253139]
[1766741611467,0.01126291,88787.0,88767.0,0.01126544]
[1766741612090,0.01126303,88786.0,88766.0,0.01126557]
[1766741612227,0.01126303,88786.0,88766.0,0.0450785]
[1766741613654,0.01126291,88787.0,88767.0,0.01126544]
[1766741614596,0.0675773,88788.0,88768.0,0.01126532]
[1766741614741,0.01126291,88787.0,88769.0,0.01128]
[1766741616157,0.01126278,88788.0,88769.0,0.01128]
[1766741616506,0.02182224,88787.0,88769.0,0.01128]
[1766741616685,0.02182236,88786.0,88769.0,0.01128]
[1766741616861,0.01055933,88785.0,88769.0,0.01128]
[1766741617064,0.01055933,88784.0,88769.0,0.01128]
[1766741617265,0.01055933,88783.0,88769.0,0.01128]
[1766741617462,0.01055933,88782.0,88769.0,0.01128]
[1766741617682,0.01055933,88781.0,88769.0,0.01128]
[1766741617885,0.01055933,88780.0,88769.0,0.01128]
[1766741618120,0.01055933,88779.0,88769.0,0.01128]
[1766741618284,0.01055933,88778.0,88769.0,0.01128]
[1766741618490,0.01055933,88777.0,88769.0,0.01128]
[1766741618710,0.01055933,88776.0,88769.0,0.01128]
[1766741618950,0.01126291,88787.0,88769.0,0.01128]
[1766741619150,0.02182248,88786.0,88769.0,0.01110536]
[1766741619286,0.01055945,88785.0,88769.0,0.01110536]
[1766741620386,0.02182261,88785.0,88769.0,0.01110536]
[1766741620616,0.01055945,88784.0,88769.0,0.01110536]
[1766741621682,0.01055945,88783.0,88769.0,0.01110536]
[1766741622041,0.01055945,88782.0,88769.0,0.01110536]
[1766741622235,0.01055945,88781.0,88769.0,0.01110536]
[1766741622438,0.01055945,88780.0,88769.0,0.01110536]
[1766741622605,0.01055945,88779.0,88769.0,0.01110536]
[1766741622799,0.01055945,88778.0,88769.0,0.01110536]
[1766741623031,0.01055945,88777.0,88769.0,0.02237055]
[1766741623344,0.05474163,88791.0,88770.0,0.01126506]
[1766741623494,0.01055948,88790.0,88771.0,0.01126494]
[1766741623696,0.01055948,88789.0,88771.0,0.01126494]
[1766741623948,0.01055948,88788.0,88771.0,0.01126494]
[1766741624127,0.01055948,88787.0,88771.0,0.01126494]
[1766741624347,0.01055948,88786.0,88772.0,0.01126481]
[1766741624547,0.01055948,88785.0,88772.0,0.01126481]
[1766741624727,0.01055948,88784.0,88773.0,0.01126468]
[1766741624934,0.01055948,88783.0,88772.0,0.01126481]
[1766741625112,0.01055948,88782.0,88772.0,0.01126481]
[1766741625316,0.01055948,88781.0,88772.0,0.01126481]
[1766741625669,0.01055948,88780.0,88772.0,0.01126481]
[1766741625872,0.01055948,88779.0,88773.0,0.01126468]
[1766741626166,0.030412,88792.0,88774.0,0.01126455]
[1766741626463,0.01055903,88791.0,88774.0,0.01126455]
[1766741626672,0.01055903,88790.0,88774.0,0.01126455]
[1766741626879,0.01055903,88789.0,88772.0,0.01126481]
[1766741627031,0.01055903,88788.0,88771.0,0.04167694]
[1766741627229,0.01055903,88787.0,88771.0,0.04167694]
[1766741627428,0.01055903,88786.0,88771.0,0.030412]
[1766741627663,0.01055903,88785.0,88771.0,0.030412]
[1766741627865,0.01055903,88784.0,88771.0,0.030412]
[1766741628060,0.01055903,88783.0,88771.0,0.030412]
[1766741628241,0.01055903,88782.0,88771.0,0.030412]
[1766741628444,0.01055903,88781.0,88771.0,0.030412]
[1766741628681,0.01055903,88780.0,88771.0,0.030412]
[1766741628944,0.01055903,88779.0,88771.0,0.030412]
[1766741629164,0.01126252,88790.0,88771.0,0.030412]
[1766741629364,0.01055961,88789.0,88771.0,0.04167694]
[1766741629569,0.01055961,88788.0,88771.0,0.030412]
[1766741629794,0.01055961,88787.0,88771.0,0.030412]
[1766741629996,0.01055961,88786.0,88771.0,0.030412]
[1766741630157,0.01126278,88788.0,88769.0,0.01110536]
[1766741630158,0.01055961,88785.0,88769.0,0.01110536]
[1766741630343,0.01055961,88784.0,88770.0,0.01126278]
[1766741630539,0.01055961,88783.0,88770.0,0.01126278]
[1766741630743,0.01055961,88782.0,88770.0,0.01126278]
[1766741630945,0.01055961,88781.0,88770.0,0.01126278]
[1766741631143,0.01055961,88780.0,88770.0,0.01126278]
[1766741631402,0.01055961,88779.0,88770.0,0.01126278]
[1766741631612,0.01055961,88778.0,88770.0,0.01126278]
[1766741631837,0.01055961,88777.0,88770.0,0.01126278]
[1766741632038,0.01126291,88787.0,88770.0,0.01126278]
[1766741632241,0.01056268,88786.0,88770.0,0.01126278]
[1766741632396,0.01056268,88785.0,88770.0,0.01126278]
[1766741632597,0.01056268,88784.0,88770.0,0.01126278]
[1766741632813,0.01056268,88783.0,88770.0,0.01126278]
[1766741633001,0.01056268,88782.0,88770.0,0.01126278]
[1766741633344,0.01126392,88779.0,88770.0,0.01071378]
[1766741633498,0.01126443,88775.0,88757.0,0.04508]
[1766741633838,0.01056466,88774.0,88760.0,0.01126278]
[1766741633994,0.01056466,88773.0,88760.0,0.01126278]
[1766741634337,0.0112643,88776.0,88760.0,0.01126278]
[1766741634534,0.0105655,88775.0,88760.0,0.01126278]
[1766741634715,0.0105655,88774.0,88760.0,0.01126278]
[1766741634912,0.0105655,88773.0,88760.0,0.01126278]
[1766741635118,0.0112643,88776.0,88760.0,0.01126278]
[1766741635324,0.02183,88775.0,88760.0,0.01126278]
[1766741635560,0.01126468,88773.0,88756.0,7.276e-05]
[1766741635745,0.00055,88760.0,88756.0,7.276e-05]
[1766741635943,0.0112657,88765.0,88756.0,7.276e-05]
[1766741636158,0.01056687,88764.0,88756.0,7.276e-05]
[1766741636400,0.01056687,88763.0,88756.0,7.276e-05]
[1766741636512,0.01056687,88762.0,88756.0,7.276e-05]
[1766741636717,0.0112657,88765.0,88756.0,7.276e-05]
[1766741636923,0.01056178,88764.0,88756.0,7.276e-05]
[1766741637121,0.01056178,88763.0,88756.0,7.276e-05]
[1766741637341,0.01126544,88767.0,88756.0,7.276e-05]
[1766741637542,0.09192809,88769.0,88756.0,7.276e-05]
[1766741637543,0.01055822,88766.0,88756.0,7.276e-05]
[1766741637740,0.01055822,88765.0,88756.0,7.276e-05]
[1766741637945,0.01055822,88764.0,88756.0,7.276e-05]
[1766741638169,0.01128,88774.0,88756.0,7.276e-05]
[1766741638367,0.01128,88772.0,88766.0,0.0002]
[1766741638566,0.01128,88772.0,88756.0,7.276e-05]
[1766741639004,0.01126468,88773.0,88756.0,7.276e-05]
[1766741639180,0.02254468,88773.0,88756.0,7.276e-05]
[1766741639763,0.01128,88773.0,88756.0,7.276e-05]
[1766741640168,0.02254468,88773.0,88756.0,7.276e-05]
[1766741640591,0.01128,88773.0,88756.0,7.276e-05]
[1766741642189,0.01128,88773.0,88756.0,0.0113396]
[1766741642383,0.01128,88773.0,88756.0,7.276e-05]
[1766741642986,0.01126341,88783.0,88756.0,7.276e-05]
[1766741643194,0.01126354,88782.0,88760.0,0.01126633]
[1766741643551,0.01128,88779.0,88760.0,0.01126633]
[1766741644004,0.01128,88779.0,88761.0,0.0112662]
[1766741644386,0.01126367,88781.0,88761.0,0.0112662]
[1766741645175,0.04507868,88782.0,88760.0,0.01126633]
[1766741645176,0.03381514,88782.0,88763.0,0.01126595]
[1766741645430,0.01126341,88783.0,88764.0,0.01128]
[1766741645632,0.01126354,88782.0,88764.0,0.01128]
[1766741646179,0.01126341,88783.0,88764.0,0.01128]
[1766741646631,0.01126354,88782.0,88764.0,0.01128]
[1766741647832,0.01126367,88781.0,88765.0,0.01128]
[1766741648592,0.01126354,88782.0,88765.0,0.01128]
[1766741648796,0.01126367,88781.0,88765.0,0.01128]
[1766741649023,0.06758107,88783.0,88765.0,0.01128]
[1766741649431,0.01126367,88781.0,88765.0,0.01128]
[1766741649595,0.01126341,88783.0,88765.0,0.01128]
[1766741649799,0.06777849,88786.0,88765.0,0.01128]
[1766741650021,0.01126329,88784.0,88765.0,0.01128]
[1766741650234,0.01054871,88783.0,88765.0,0.01128]
[1766741650445,0.01054871,88782.0,88765.0,0.01128]
[1766741650606,0.01054871,88781.0,88765.0,0.01128]
[1766741650804,0.01054871,88780.0,88769.0,0.01126519]
[1766741651028,0.01148,88786.0,88768.0,0.01126532]
[1766741651245,0.01054828,88785.0,88768.0,0.01126532]
[1766741651446,0.01054828,88784.0,88767.0,0.01126544]
[1766741651681,0.01054828,88783.0,88767.0,0.01126544]
[1766741651812,0.01054828,88782.0,88767.0,0.01126544]
[1766741652010,0.01054828,88781.0,88768.0,0.01126532]
[1766741652258,0.01148,88786.0,88767.0,0.01126544]
[1766741652259,0.01054828,88780.0,88767.0,0.01126544]
[1766741652424,0.01148,88786.0,88767.0,0.01126544]
[1766741652625,0.01054854,88785.0,88766.0,0.01126557]
[1766741652820,0.01148,88786.0,88766.0,0.01126557]
[1766741652821,0.01054854,88784.0,88766.0,0.01126557]
[1766741653187,0.01054854,88783.0,88767.0,0.01126544]
[1766741653341,0.01054854,88782.0,88767.0,0.01126544]
[1766741653515,0.01054854,88781.0,88767.0,0.01126544]
[1766741653812,0.01148,88786.0,88767.0,0.01126544]
[1766741653813,0.01054854,88780.0,88767.0,0.01126544]
[1766741654015,0.01148,88786.0,88768.0,0.01126532]
[1766741654339,0.01054847,88785.0,88767.0,0.01126544]
[1766741654530,0.01054847,88784.0,88768.0,0.01126532]
[1766741654826,0.01054847,88783.0,88767.0,0.01126544]
[1766741655028,0.01054847,88782.0,88767.0,0.01126544]
[1766741655257,0.01054847,88781.0,88767.0,0.01126544]
[1766741655462,0.01054847,88780.0,88767.0,0.01126544]
[1766741655669,0.01148,88786.0,88767.0,0.01126544]
[1766741655876,0.01054898,88785.0,88767.0,0.01126544]
[1766741656077,0.01054898,88784.0,88767.0,0.01126544]
[1766741656226,0.01054898,88783.0,88767.0,0.01126544]
[1766741656429,0.01054898,88782.0,88767.0,0.01126544]
[1766741656658,0.01054898,88781.0,88767.0,0.01126544]
[1766741656861,0.01054898,88780.0,88767.0,0.01126544]
[1766741657059,0.01054898,88779.0,88768.0,0.01126532]
[1766741657258,0.01148,88786.0,88768.0,0.01126532]
[1766741657475,0.01054952,88785.0,88768.0,0.01126532]
[1766741657709,0.01054952,88784.0,88768.0,0.01126532]
[1766741657862,0.01054952,88783.0,88768.0,0.01126532]
[1766741658205,0.01054952,88782.0,88768.0,0.01126532]
[1766741658366,0.01148,88786.0,88768.0,0.01126532]
[1766741658367,0.01054952,88781.0,88768.0,0.01126532]
[1766741658551,0.01054952,88780.0,88768.0,0.01126532]
[1766741658757,0.01054952,88779.0,88768.0,0.01126532]
[1766741659013,0.01148,88786.0,88768.0,0.01126532]
[1766741659189,0.01054988,88785.0,88768.0,0.01126532]
[1766741659394,0.01054988,88784.0,88767.0,0.01126544]
[1766741659610,0.01054988,88783.0,88767.0,0.01126544]
[1766741659776,0.01054988,88782.0,88767.0,0.01126544]
[1766741659971,0.01054988,88781.0,88767.0,0.01126544]
[1766741660177,0.01054988,88780.0,88767.0,0.01126544]
[1766741660512,0.01054988,88779.0,88767.0,0.01126544]
[1766741660708,0.01148,88786.0,88768.0,0.01126532]
[1766741660872,0.01055019,88785.0,88766.0,0.01126557]
[1766741661062,0.01055019,88784.0,88766.0,0.01126557]
[1766741661259,0.01055019,88783.0,88766.0,0.01126557]
[1766741661461,0.01055019,88782.0,88767.0,0.01126544]
[1766741661683,0.01148,88786.0,88767.0,0.01126544]
[1766741661914,0.01055029,88785.0,88768.0,0.01126532]
[1766741662117,0.01055029,88784.0,88768.0,0.01126532]
[1766741662458,0.01055029,88783.0,88768.0,0.01126532]
[1766741662658,0.01055029,88782.0,88768.0,0.01126532]
[1766741662892,0.01055029,88781.0,88768.0,0.01126532]
[1766741663058,0.01055029,88780.0,88768.0,0.01126532]
[1766741663269,0.01055029,88779.0,88769.0,0.01126519]
[1766741663566,0.01148,88786.0,88768.0,0.01126532]
[1766741663763,0.01055051,88785.0,88768.0,0.01126532]
[1766741663914,0.01055051,88784.0,88768.0,0.01126532]
[1766741664112,0.01055051,88783.0,88768.0,0.01126532]
[1766741664365,0.01055051,88782.0,88768.0,0.01126532]
[1766741664668,0.01055051,88781.0,88768.0,0.01126532]
[1766741664814,0.01055051,88780.0,88768.0,0.01126532]
[1766741665017,0.01055051,88779.0,88768.0,0.01126532]
[1766741665267,0.01148,88786.0,88768.0,0.01126532]
[1766741665449,0.01055021,88785.0,88767.0,0.01126544]
[1766741665656,0.01055021,88784.0,88768.0,0.01126532]
[1766741665850,0.01055021,88783.0,88768.0,0.01126532]
[1766741666171,0.01055021,88782.0,88769.0,0.01126519]
[1766741666334,0.01055021,88781.0,88768.0,0.01126532]
[1766741666528,0.01055021,88780.0,88768.0,0.01126532]
[1766741666752,0.01148,88786.0,88774.0,0.01126455]
[1766741666753,0.01035121,88779.0,88774.0,0.01126455]
[1766741666955,0.0002,88786.0,88774.0,0.01126455]
[1766741666956,0.0002,88786.0,88779.0,0.00055]
[1766741667139,0.0002,88786.0,88775.0,0.02254443]
[1766741667340,0.0002,88786.0,88777.0,0.01126417]
[1766741667543,0.0002,88786.0,88783.0,0.06758035]
[1766741667741,0.0002,88786.0,88784.0,0.01240621]
[1766741667948,0.0112605,88806.0,88786.0,0.01126303]
[1766741668178,0.02254189,88802.0,88785.0,0.01126316]
[1766741668498,0.01126075,88804.0,88784.0,0.01128]
[1766741668679,0.01136842,88804.0,88784.0,0.02254329]
[1766741668879,0.00010767,88804.0,88784.0,0.01128]
[1766741669127,0.01126088,88803.0,88784.0,0.01128]
[1766741669326,0.011261,88802.0,88784.0,0.01128]
[1766741669696,0.01126088,88803.0,88784.0,0.01128]
[1766741670603,0.01126113,88801.0,88784.0,0.01128]
[1766741670806,0.06947907,88804.0,88784.0,0.01128]
[1766741671005,0.01126088,88803.0,88784.0,0.01128]
[1766741671411,0.01126113,88801.0,88784.0,0.01128]
[1766741671828,0.03556902,88803.0,88784.0,0.01128]
[1766741672021,0.011261,88802.0,88784.0,0.01128]
[1766741672220,0.01126088,88803.0,88784.0,0.01128]
[1766741672445,0.01126126,88800.0,88784.0,0.01128]
[1766741673071,0.02430814,88803.0,88784.0,0.01128]
[1766741673244,0.00010767,88804.0,88785.0,0.00112619]
[1766741673424,0.00010767,88804.0,88784.0,0.01128]
[1766741673425,0.01126088,88803.0,88784.0,0.01128]
[1766741673766,0.01126113,88801.0,88784.0,0.01128]
[1766741674149,0.06756603,88802.0,88784.0,0.01128]
[1766741674347,0.01126088,88803.0,88784.0,0.01128]
[1766741674555,0.01136842,88804.0,88784.0,0.01128]
[1766741674758,0.01126113,88801.0,88784.0,0.01128]
[1766741675157,0.01126138,88799.0,88784.0,0.01128]
[1766741675561,0.01126189,88795.0,88784.0,0.01128]
[1766741675744,0.01126176,88796.0,88784.0,0.01128]
[1766741676089,0.01126164,88797.0,88784.0,0.01128]
[1766741676280,0.01126164,88797.0,88785.0,0.01128]
[1766741676438,0.01126138,88799.0,88785.0,0.01128]
[1766741676640,0.09185338,88801.0,88785.0,0.01128]
[1766741676854,0.01126126,88800.0,88785.0,0.01128]
[1766741677261,0.03554722,88801.0,88785.0,0.01128]
[1766741677459,0.01126113,88801.0,88785.0,0.01128]
[1766741677703,0.01126088,88803.0,88785.0,0.01128]
[1766741677878,0.011261,88802.0,88785.0,0.01128]
[1766741678080,0.01126088,88803.0,88785.0,0.01128]
[1766741678661,0.011261,88802.0,88785.0,0.01128]
[1766741678863,0.01053902,88801.0,88785.0,0.01128]
[1766741679064,0.01053902,88800.0,88785.0,0.01128]
[1766741679265,0.011261,88802.0,88785.0,0.01128]
[1766741679468,0.01126126,88800.0,88785.0,0.01128]
[1766741679723,0.011261,88802.0,88785.0,0.01128]
[1766741679879,0.01053843,88801.0,88785.0,0.01128]
[1766741680080,0.01053843,88800.0,88785.0,0.01128]
[1766741680283,0.011261,88802.0,88785.0,0.01128]
[1766741680492,0.01053802,88801.0,88785.0,0.01128]
[1766741680701,0.01053802,88800.0,88785.0,0.01128]
[1766741680860,0.01126113,88801.0,88785.0,0.01128]
[1766741681065,0.01053802,88800.0,88785.0,0.01128]
[1766741681282,0.01126113,88801.0,88785.0,0.01128]
[1766741681482,0.01053768,88800.0,88785.0,0.01128]
[1766741681690,0.011261,88802.0,88785.0,0.01128]
[1766741681906,0.02179881,88801.0,88785.0,0.01128]
[1766741682127,0.01053768,88800.0,88785.0,0.01128]
[1766741682333,0.011261,88802.0,88785.0,0.01128]
[1766741682547,0.01053751,88801.0,88785.0,0.01128]
[1766741682680,0.01053751,88800.0,88785.0,0.01128]
[1766741683009,0.011261,88802.0,88785.0,0.01128]
[1766741683212,0.01053751,88801.0,88785.0,0.01128]
[1766741683514,0.01053751,88800.0,88785.0,0.01128]
[1766741683831,0.011261,88802.0,88785.0,0.01128]
[1766741684032,0.01053749,88801.0,88785.0,0.01128]
[1766741684197,0.01053749,88800.0,88785.0,0.01128]
[1766741684393,0.011261,88802.0,88785.0,0.01128]
[1766741684597,0.01053762,88801.0,88785.0,0.01128]
[1766741684826,0.01053762,88800.0,88785.0,0.01128]
[1766741685175,0.01126113,88801.0,88785.0,0.01128]
[1766741685288,0.01053762,88800.0,88785.0,0.01128]
[1766741685639,0.01126113,88801.0,88785.0,0.01128]
[1766741685938,0.01053792,88800.0,88785.0,0.01128]
[1766741686139,0.011261,88802.0,88785.0,0.01128]
[1766741686341,0.01126088,88803.0,88785.0,0.01128]
[1766741686342,0.01053792,88801.0,88785.0,0.01128]
[1766741686540,0.01053792,88800.0,88785.0,0.01128]
[1766741686747,0.01126088,88803.0,88785.0,0.01128]
[1766741686908,0.01053837,88802.0,88785.0,0.01128]
[1766741687121,0.01053837,88801.0,88785.0,0.01128]
[1766741687292,0.01053837,88800.0,88785.0,0.01128]
[1766741687488,0.01136842,88804.0,88785.0,0.01128]
[1766741687698,0.01053901,88803.0,88785.0,0.01128]
[1766741687927,0.01053901,88802.0,88785.0,0.01128]
[1766741688127,0.01053901,88801.0,88785.0,0.01128]
[1766741688342,0.01053901,88800.0,88785.0,0.01128]
[1766741688502,0.01126088,88803.0,88785.0,0.01128]
[1766741688708,0.01053983,88802.0,88785.0,0.01128]
[1766741688956,0.01053983,88801.0,88785.0,0.01128]
[1766741689246,0.01053983,88800.0,88785.0,0.01128]
[1766741689549,0.01053983,88799.0,88785.0,0.01128]
[1766741689756,0.01126088,88803.0,88785.0,0.01128]
[1766741690045,0.01054084,88802.0,88785.0,0.01128]
[1766741690251,0.01054084,88801.0,88788.0,0.01126278]
[1766741690428,0.01054084,88800.0,88786.0,0.06757788]
[1766741690617,0.00010767,88804.0,88787.0,0.01126291]
[1766741690813,0.01054179,88803.0,88785.0,0.01128]
[1766741691151,0.01054179,88802.0,88785.0,0.01128]
[1766741691655,0.01054179,88801.0,88785.0,0.02254316]
[1766741691898,0.00010767,88804.0,88785.0,0.02254316]
[1766741691899,0.01054179,88800.0,88785.0,0.02254316]
[1766741692039,0.00010767,88804.0,88785.0,0.02254316]
[1766741692234,0.0105432,88803.0,88785.0,0.02254316]
[1766741692598,0.0105432,88802.0,88785.0,0.02254316]
[1766741692823,0.0105432,88801.0,88785.0,0.02254316]
[1766741692977,0.0105432,88800.0,88785.0,0.02254316]
[1766741693312,0.0105432,88799.0,88785.0,0.02254316]
[1766741693438,0.00010767,88804.0,88785.0,0.02254316]
[1766741693645,0.01054698,88803.0,88785.0,0.02254316]
[1766741693898,0.01054698,88802.0,88785.0,0.02254316]
[1766741694093,0.01054698,88801.0,88785.0,0.02254316]
[1766741694341,0.01054698,88800.0,88785.0,0.01128]
[1766741694524,0.01054698,88799.0,88785.0,0.02254316]
[1766741694728,0.01054698,88798.0,88786.0,0.01126303]
[1766741694936,0.00010767,88804.0,88786.0,0.01126303]
[1766741695118,0.01054956,88803.0,88786.0,0.01126303]
[1766741695324,0.01054956,88802.0,88786.0,0.01126303]
[1766741695524,0.00010767,88804.0,88785.0,0.01128]
[1766741695525,0.01054956,88801.0,88785.0,0.01128]
[1766741695701,0.01054956,88800.0,88785.0,0.02254316]
[1766741695908,0.01054956,88799.0,88785.0,0.02254316]
[1766741696145,0.01054956,88798.0,88785.0,0.02254316]
[1766741696303,0.00010767,88804.0,88785.0,0.02254316]
[1766741696508,0.01055775,88803.0,88785.0,0.02254316]
[1766741696703,0.01055775,88802.0,88786.0,0.01126303]
[1766741696914,0.01055775,88801.0,88786.0,0.01126303]
[1766741697231,0.01055775,88800.0,88786.0,0.01126303]
[1766741697426,0.01055775,88799.0,88785.0,0.02254316]
[1766741697630,0.01055775,88798.0,88786.0,0.01126303]
[1766741697827,0.01055775,88797.0,88786.0,0.01126303]
[1766741698036,0.01055775,88796.0,88786.0,0.01126303]
[1766741698232,0.01055775,88795.0,88786.0,0.01126303]
[1766741698433,0.01055775,88794.0,88786.0,0.01126303]
[1766741698616,0.00010767,88804.0,88786.0,0.01126303]
[1766741698952,0.01056388,88803.0,88787.0,0.01126291]
[1766741699132,0.01056388,88802.0,88786.0,0.01126303]
[1766741699343,0.01056388,88801.0,88786.0,0.01126303]
[1766741699533,0.01056388,88800.0,88786.0,0.01107172]
[1766741699717,0.01046388,88799.0,88786.0,0.01107172]
[1766741700054,0.00010767,88804.0,88787.0,0.01126291]
[1766741700675,0.00010767,88804.0,88786.0,0.01107172]
[1766741701392,0.00010767,88804.0,88785.0,0.07885866]
[1766741701644,0.00010767,88804.0,88785.0,0.02254316]
[1766741701817,0.05630739,88799.0,88775.0,0.01126443]
[1766741702026,0.01126164,88797.0,88771.0,0.06758903]
[1766741702227,0.03042338,88798.0,88773.0,0.03380611]
[1766741702461,0.06758062,88783.0,88760.0,0.01126633]
[1766741702605,0.06758062,88783.0,88761.0,0.01128]
[1766741702606,0.01126379,88780.0,88761.0,0.01128]
[1766741702786,0.01126367,88781.0,88762.0,0.01128]
[1766741703189,0.01126354,88782.0,88762.0,0.02254608]
[1766741703390,0.01126379,88780.0,88762.0,0.01128]
[1766741703626,0.01126367,88781.0,88762.0,0.01128]
[1766741703828,0.01126392,88779.0,88762.0,0.01128]
[1766741704603,0.03554963,88782.0,88762.0,0.01128]
[1766741704797,0.01126354,88782.0,88762.0,0.02254608]
[1766741705220,0.02428609,88785.0,88764.0,0.01126582]
[1766741705432,0.05631499,88787.0,88764.0,0.01126582]
[1766741705627,0.01126316,88785.0,88765.0,0.0112657]
[1766741706020,0.01126303,88786.0,88766.0,0.01126557]
[1766741706387,0.06757864,88786.0,88764.0,0.01126582]
[1766741706583,0.09186473,88786.0,88764.0,0.01126582]
[1766741706791,0.01126341,88783.0,88763.0,0.01126595]
[1766741707228,0.03554925,88785.0,88765.0,0.0112657]
[1766741707436,0.01126329,88784.0,88764.0,0.01126582]
[1766741708345,0.01126291,88787.0,88767.0,0.01126544]
[1766741708552,0.02128278,88788.0,88768.0,0.07478]
[1766741708750,0.01126291,88787.0,88770.0,0.07478]
[1766741708990,0.03554849,88791.0,88770.0,0.08604506]
[1766741709149,0.01126252,88790.0,88770.0,0.07478]
[1766741709365,0.01126252,88790.0,88770.0,0.08604506]
[1766741709566,0.01126265,88789.0,88770.0,0.07478]
[1766741710570,0.01126278,88788.0,88770.0,0.07478]
[1766741710991,0.01126291,88787.0,88770.0,0.07478]
[1766741711194,0.01126278,88788.0,88770.0,0.07478]
[1766741711391,0.01126291,88787.0,88770.0,0.07478]
[1766741711833,0.01054034,88786.0,88770.0,0.07478]
[1766741711967,0.01054034,88785.0,88770.0,0.07478]
[1766741712168,0.03554874,88789.0,88770.0,0.07478]
[1766741712368,0.01054009,88788.0,88770.0,0.07478]
[1766741712570,0.01054009,88787.0,88770.0,0.07478]
[1766741712772,0.01054009,88786.0,88770.0,0.07478]
[1766741712972,0.01054009,88785.0,88770.0,0.07478]
[1766741713207,0.01126291,88787.0,88770.0,0.07478]
[1766741713416,0.01053963,88786.0,88770.0,0.07478]
[1766741713620,0.01053963,88785.0,88770.0,0.07478]
[1766741713836,0.01126291,88787.0,88770.0,0.07478]
[1766741713992,0.01053936,88786.0,88770.0,0.07478]
[1766741714198,0.01053936,88785.0,88770.0,0.07478]
[1766741714403,0.01126291,88787.0,88770.0,0.07478]
[1766741714608,0.01053906,88786.0,88770.0,0.07478]
[1766741714807,0.01053906,88785.0,88770.0,0.07478]
[1766741715030,0.01126291,88787.0,88770.0,0.07478]
[1766741715230,0.01053908,88786.0,88770.0,0.07478]
[1766741715428,0.01053908,88785.0,88770.0,0.07478]